[Event "Open Mancomunitat de la Ribera Alta (Sumacàrcer)"]
[Site "Sumacàrcer, Spain"]
[Date "2018.11.18"]
[Round "3.5"]
[White "Torres Sanchez, Jose"]
[Black "Cruz Lledo, Pablo"]
[Result "0-1"]
[TimeControl "5m+3s"]
[WhiteElo "2183"]
[BlackElo "2335"]

1. e4 {[%clk 00:05:04]} {[%emt 00:00:07]} c6 {[%clk 00:05:05]} 2. Nf3 {[%clk
00:05:02]} d5 {[%clk 00:05:06]} {[%emt 00:00:07]} 3. Nc3 {[%clk 00:05:00]}
{[%emt 00:00:07]} g6 {[%clk 00:05:04]} {[%emt 00:00:04]} 4. d4 {[%clk
00:04:56]} {[%emt 00:00:12]} Bg7 {[%clk 00:05:02]} {[%emt 00:00:13]} 5. h3
{[%clk 00:04:55]} dxe4 {[%clk 00:04:52]} {[%emt 00:00:08]} 6. Nxe4 {[%clk
00:04:57]} Nf6 {[%clk 00:04:47]} {[%emt 00:00:07]} 7. Nxf6+ {[%clk 00:04:38]}
{[%emt 00:00:17]} exf6 {[%clk 00:04:46]} {[%emt 00:00:07]} 8. Bf4 {[%clk
00:04:23]} {[%emt 00:00:12]} O-O {[%clk 00:04:45]} {[%emt 00:00:13]} 9. Qd2
{[%clk 00:04:20]} Re8+ {[%clk 00:04:31]} {[%emt 00:00:18]} 10. Be2 {[%clk
00:04:19]} {[%emt 00:00:07]} Qd5 {[%clk 00:04:30]} {[%emt 00:00:04]} 11. O-O
{[%clk 00:04:12]} {[%emt 00:00:06]} Bf5 {[%clk 00:04:13]} {[%emt 00:00:19]} 12.
Rfe1 {[%clk 00:03:58]} {[%emt 00:00:16]} Qd7 {[%clk 00:03:49]} {[%emt
00:01:02]} 13. Bd3 {[%clk 00:03:44]} {[%emt 00:00:07]} Bxd3 {[%clk 00:03:46]}
14. Qxd3 {[%clk 00:03:46]} Na6 {[%clk 00:03:46]} 15. c4 {[%clk 00:03:44]} Nc7
{[%clk 00:03:39]} {[%emt 00:00:09]} 16. Rad1 {[%clk 00:03:38]} {[%emt
00:00:03]} Ne6 {[%clk 00:03:30]} {[%emt 00:00:32]} 17. Be3 {[%clk 00:03:33]} b6
{[%clk 00:03:21]} {[%emt 00:00:03]} 18. d5 {[%clk 00:03:27]} {[%emt 00:00:10]}
cxd5 {[%clk 00:03:16]} {[%emt 00:00:06]} 19. cxd5 {[%clk 00:03:26]} {[%emt
00:00:15]} Nd8 {[%clk 00:03:07]} 20. Bf4 {[%clk 00:03:16]} {[%emt 00:00:38]}
Nb7 {[%clk 00:03:06]} 21. b4 {[%clk 00:03:14]} {[%emt 00:00:06]} a5 {[%clk
00:02:52]} 22. a3 {[%clk 00:03:15]} axb4 {[%clk 00:02:31]} {[%emt 00:00:20]} 23.
axb4 {[%clk 00:03:17]} {[%emt 00:00:03]} Bf8 {[%clk 00:02:33]} 24. Qd4 {[%clk
00:03:01]} {[%emt 00:00:43]} Rxe1+ {[%clk 00:01:45]} {[%emt 00:00:24]} 25. Rxe1
{[%clk 00:03:02]} {[%emt 00:00:41]} Bd6 {[%clk 00:01:38]} 26. Bh6 {[%clk
00:01:43]} {[%emt 00:00:54]} Be7 {[%clk 00:01:27]} {[%emt 00:00:41]} 27. Qxb6
{[%clk 00:01:32]} Nd6 {[%clk 00:01:29]} 28. Qc6 {[%clk 00:01:28]} {[%emt
00:00:04]} Rd8 {[%clk 00:01:27]} 29. Nd4 {[%clk 00:01:25]} {[%emt 00:00:06]}
Nc8 {[%clk 00:00:57]} {[%emt 00:00:32]} 30. Qxd7 {[%clk 00:01:12]} {[%emt
00:00:13]} Rxd7 {[%clk 00:00:59]} {[%emt 00:00:21]} 31. Nc6 {[%clk 00:01:14]}
f5 {[%clk 00:00:49]} {[%emt 00:00:15]} 32. d6 {[%clk 00:01:13]} Nxd6 {[%clk
00:00:12]} {[%emt 00:00:45]} 33. Nxe7+ {[%clk 00:01:11]} Kh8 {[%clk 00:00:14]}
34. Rd1 {[%clk 00:00:42]} {[%emt 00:00:19]} f6 {[%clk 00:00:15]} {[%emt
00:00:03]} 35. Nc8 {[%clk 00:00:39]} {[%emt 00:00:22]} g5 {[%clk 00:00:11]}
{[%emt 00:00:03]} 36. Rxd6 {[%clk 00:00:37]} Rc7 {[%clk 00:00:13]} 37. Rd8# 0-1

[Event "Open Mancomunitat de la Ribera Alta (Sumacàrcer)"]
[Site "Sumacàrcer, Spain"]
[Date "2018.11.18"]
[Round "3.6"]
[White "Garcia Vasquez, Jhoel"]
[Black "Montalban Galvez, Antoni"]
[Result "1/2-1/2"]
[TimeControl "5m+3s"]
[WhiteElo "2298"]
[BlackElo "2172"]

1. d4 {[%clk 00:05:04]} {[%emt 00:00:15]} Nf6 {[%clk 00:05:05]} 2. c4 {[%clk
00:05:01]} {[%emt 00:00:07]} g6 {[%clk 00:05:05]} 3. Nc3 {[%clk 00:05:01]} Bg7
{[%clk 00:05:03]} {[%emt 00:00:04]} 4. e4 {[%clk 00:04:40]} {[%emt 00:00:18]}
d6 {[%clk 00:05:04]} {[%emt 00:00:33]} 5. Nf3 {[%clk 00:04:42]} O-O {[%clk
00:05:04]} 6. Be2 {[%clk 00:04:43]} Bg4 {[%clk 00:05:01]} {[%emt 00:00:07]} 7.
Be3 {[%clk 00:04:31]} Nfd7 {[%clk 00:04:56]} {[%emt 00:00:04]} 8. h3 {[%clk
00:04:10]} {[%emt 00:00:17]} Bxf3 {[%clk 00:04:55]} {[%emt 00:00:32]} 9. Bxf3
{[%clk 00:04:12]} Nc6 {[%clk 00:04:27]} {[%emt 00:00:06]} 10. Ne2 {[%clk
00:02:42]} {[%emt 00:01:33]} e5 {[%clk 00:03:13]} {[%emt 00:01:18]} 11. d5
{[%clk 00:02:44]} {[%emt 00:00:04]} Ncb8 {[%clk 00:03:15]} 12. g4 {[%clk
00:02:18]} {[%emt 00:00:24]} a5 {[%clk 00:03:13]} {[%emt 00:00:09]} 13. Ng3
{[%clk 00:02:19]} {[%emt 00:00:03]} Na6 {[%clk 00:03:15]} 14. h4 {[%clk
00:01:58]} {[%emt 00:00:19]} Nac5 {[%clk 00:02:35]} {[%emt 00:00:49]} 15. Kf1
{[%clk 00:01:42]} {[%emt 00:00:17]} Rb8 {[%clk 00:02:23]} {[%emt 00:00:11]} 16.
a4 {[%clk 00:01:28]} {[%emt 00:00:17]} Qe7 {[%clk 00:02:10]} {[%emt 00:00:19]}
17. Kg2 {[%clk 00:01:29]} {[%emt 00:00:03]} c6 {[%clk 00:02:12]} 18. h5 {[%clk
00:00:53]} {[%emt 00:00:36]} cxd5 {[%clk 00:01:43]} {[%emt 00:00:32]} 19. cxd5
{[%clk 00:00:51]} {[%emt 00:00:40]} b5 {[%clk 00:01:43]} 20. axb5 {[%clk
00:00:40]} {[%emt 00:00:04]} Rxb5 {[%clk 00:01:45]} 21. Ra2 {[%clk 00:00:29]}
{[%emt 00:00:03]} Rfb8 {[%clk 00:01:43]} 22. Qe2 {[%clk 00:00:27]} {[%emt
00:00:10]} Bf6 {[%clk 00:01:32]} {[%emt 00:00:05]} 23. Rha1 {[%clk 00:00:27]}
{[%emt 00:00:06]} Bg5 {[%clk 00:01:26]} {[%emt 00:00:45]} 24. Bxg5 {[%clk
00:00:25]} Qxg5 {[%clk 00:01:27]} 25. Qc2 {[%clk 00:00:21]} Nf6 {[%clk
00:01:22]} 26. Be2 {[%clk 00:00:19]} Rb4 {[%clk 00:01:13]} {[%emt 00:00:03]} 27.
hxg6 {[%clk 00:00:21]} hxg6 {[%clk 00:01:16]} 28. Rxa5 {[%clk 00:00:23]} {[%emt
00:00:03]} Rxb2 {[%clk 00:01:14]} {[%emt 00:00:04]} 29. Qc4 {[%clk 00:00:25]}
Nxg4 {[%clk 00:01:02]} {[%emt 00:00:14]} 30. Ra8 {[%clk 00:00:26]} {[%emt
00:00:08]} Nf6 {[%clk 00:00:50]} {[%emt 00:00:06]} 31. Rxb8+ {[%clk 00:00:26]}
{[%emt 00:00:56]} Rxb8 {[%clk 00:00:52]} 32. Bf3 {[%clk 00:00:28]} Qd2 {[%clk
00:00:38]} 33. Rd1 {[%clk 00:00:30]} Qb4 {[%clk 00:00:40]} 34. Qe2 {[%clk
00:00:32]} Qb2 {[%clk 00:00:38]} 35. Rd2 {[%clk 00:00:34]} Qb5 {[%clk
00:00:40]} 36. Qe1 {[%clk 00:00:36]} Qb1 {[%clk 00:00:36]} 37. Rd1 {[%clk
00:00:37]} Qb4 {[%clk 00:00:36]} 38. Qe3 {[%clk 00:00:40]} Kg7 {[%clk
00:00:27]} {[%emt 00:00:09]} 39. Rh1 {[%clk 00:00:42]} Rh8 {[%clk 00:00:29]} 40.
Rxh8 {[%clk 00:00:43]} Kxh8 {[%clk 00:00:31]} 41. Qh6+ {[%clk 00:00:45]} Kg8
{[%clk 00:00:33]} {[%emt 00:00:04]} 42. Nf5 {[%clk 00:00:48]} gxf5 {[%clk
00:00:28]} {[%emt 00:00:08]} 43. Qg5+ {[%clk 00:00:47]} Kf8 {[%clk 00:00:28]}
{[%emt 00:00:11]} 44. Qxf6 {[%clk 00:00:50]} Nxe4 {[%clk 00:00:18]} {[%emt
00:00:04]} 45. Qxf5 {[%clk 00:00:42]} {[%emt 00:00:14]} Nc3 {[%clk 00:00:11]}
{[%emt 00:00:09]} 46. Bh5 {[%clk 00:00:41]} {[%emt 00:00:05]} Qe4+ {[%clk
00:00:11]} {[%emt 00:00:04]} 47. Qxe4 {[%clk 00:00:42]} {[%emt 00:00:03]} Nxe4
{[%clk 00:00:13]} 48. Bf3 Nc5 {[%clk 00:00:10]} {[%emt 00:00:08]} 49. Kg3
{[%clk 00:00:44]} {[%emt 00:00:07]} Kg7 {[%clk 00:00:07]} 50. Bg4 {[%clk
00:00:43]} {[%emt 00:00:03]} f6 {[%clk 00:00:08]} {[%emt 00:00:04]} 51. f4
{[%clk 00:00:45]} {[%emt 00:00:04]} Kg6 {[%clk 00:00:04]} {[%emt 00:00:04]} 52.
fxe5 {[%clk 00:00:44]} {[%emt 00:00:09]} fxe5 {[%clk 00:00:06]} 53. Kf3 {[%clk
00:00:44]} Kg5 {[%clk 00:00:08]} {[%emt 00:00:04]} 54. Bh3 {[%clk 00:00:45]}
Nd3 {[%clk 00:00:08]} 55. Be6 {[%clk 00:00:42]} {[%emt 00:00:08]} Nf4 {[%clk
00:00:05]} {[%emt 00:00:04]} 56. Bg8 {[%clk 00:00:44]} Ng6 {[%clk 00:00:05]}
{[%emt 00:00:04]} 57. Ke4 {[%clk 00:00:44]} {[%emt 00:00:07]} Ne7 {[%clk
00:00:06]} {[%emt 00:00:03]} 58. Be6 {[%clk 00:00:46]} Kf6 {[%clk 00:00:07]} 59.
Bh3 {[%clk 00:00:47]} Ng8 {[%clk 00:00:07]} {[%emt 00:00:03]} 60. Be6 {[%clk
00:00:49]} {[%emt 00:00:09]} Nh6 {[%clk 00:00:08]} 61. Kd3 {[%clk 00:00:48]}
Nf5 {[%clk 00:00:09]} {[%emt 00:00:04]} 62. Ke4 {[%clk 00:00:47]} {[%emt
00:00:04]} Nd4 {[%clk 00:00:10]} 63. Bg8 {[%clk 00:00:48]} {[%emt 00:00:03]}
Nb3 {[%clk 00:00:11]} 64. Ke3 {[%clk 00:00:47]} {[%emt 00:00:06]} Nc5 {[%clk
00:00:13]} 65. Kf3 {[%clk 00:00:46]} {[%emt 00:00:04]} Kg5 {[%clk 00:00:12]}
{[%emt 00:00:04]} 66. Ke3 {[%clk 00:00:47]} Kg4 {[%clk 00:00:10]} {[%emt
00:00:08]} 67. Be6+ {[%clk 00:00:44]} {[%emt 00:00:04]} Kg3 {[%clk 00:00:11]}
{[%emt 00:00:06]} 68. Bg8 {[%clk 00:00:46]} Kg4 {[%clk 00:00:04]} {[%emt
00:00:05]} 69. Bh7 {[%clk 00:00:47]} {[%emt 00:00:06]} Kg5 {[%clk 00:00:05]} 70.
Bg8 {[%clk 00:00:49]} Kg4 {[%clk 00:00:06]} {[%emt 00:00:04]} 71. Bh7 {[%clk
00:00:49]} {[%emt 00:00:04]} Kg5 {[%clk 00:00:09]} 72. Bg8 {[%clk 00:00:49]}
Kg4 {[%clk 00:00:10]} {[%emt 00:00:03]} 1/2-1/2

[Event "Open Mancomunitat de la Ribera Alta (Sumacàrcer)"]
[Site "Sumacàrcer, Spain"]
[Date "2018.11.18"]
[Round "3.7"]
[White "Huerta Martinez, Alberto"]
[Black "Ibanez Aullana, Ramon"]
[Result "0-1"]
[TimeControl "5m+3s"]
[WhiteElo "2137"]
[BlackElo "2282"]

1. g4 {[%clk 00:05:03]} {[%emt 00:00:05]} c5 {[%clk 00:04:47]} {[%emt
00:00:16]} 2. Bg2 {[%clk 00:04:58]} {[%emt 00:00:12]} Nc6 {[%clk 00:04:48]} 3.
c4 {[%clk 00:04:55]} {[%emt 00:00:09]} d6 {[%clk 00:04:46]} {[%emt 00:00:04]} 4.
h3 {[%clk 00:04:56]} h5 {[%clk 00:04:43]} {[%emt 00:00:05]} 5. g5 {[%clk
00:04:47]} {[%emt 00:00:11]} h4 {[%clk 00:04:42]} {[%emt 00:00:07]} 6. g6
{[%clk 00:04:27]} {[%emt 00:00:21]} fxg6 {[%clk 00:04:25]} {[%emt 00:00:20]} 7.
Qc2 {[%clk 00:04:29]} Bf5 {[%clk 00:04:19]} {[%emt 00:00:11]} 8. e4 {[%clk
00:04:29]} {[%emt 00:00:05]} Nd4 {[%clk 00:04:13]} {[%emt 00:00:05]} 9. Qd3
{[%clk 00:04:16]} {[%emt 00:00:16]} Bd7 {[%clk 00:03:52]} {[%emt 00:00:24]} 10.
Nf3 {[%clk 00:03:42]} {[%emt 00:00:45]} Nxf3+ {[%clk 00:03:39]} {[%emt
00:00:08]} 11. Bxf3 {[%clk 00:03:31]} {[%emt 00:00:14]} Nh6 {[%clk 00:03:34]}
{[%emt 00:00:09]} 12. e5 {[%clk 00:01:58]} {[%emt 00:01:38]} Bf5 {[%clk
00:03:25]} {[%emt 00:00:09]} 13. Qd5 {[%clk 00:01:45]} {[%emt 00:00:16]} Rb8
{[%clk 00:02:45]} {[%emt 00:00:51]} 14. e6 {[%clk 00:01:20]} {[%emt 00:00:21]}
Qc8 {[%clk 00:02:40]} {[%emt 00:00:08]} 15. d4 {[%clk 00:01:01]} {[%emt
00:00:22]} Qxe6+ {[%clk 00:02:24]} {[%emt 00:00:18]} 16. Qxe6 {[%clk 00:00:55]}
{[%emt 00:00:13]} Bxe6 {[%clk 00:02:26]} 17. d5 {[%clk 00:00:56]} {[%emt
00:00:09]} Bd7 {[%clk 00:02:23]} 18. Nc3 {[%clk 00:00:50]} {[%emt 00:00:10]}
Nf5 {[%clk 00:02:11]} {[%emt 00:00:16]} 19. Be4 {[%clk 00:00:36]} {[%emt
00:00:12]} b5 {[%clk 00:01:50]} {[%emt 00:00:23]} 20. cxb5 {[%clk 00:00:30]}
{[%emt 00:00:09]} Bxb5 {[%clk 00:01:53]} 21. Nxb5 {[%clk 00:00:23]} {[%emt
00:00:12]} Rxb5 {[%clk 00:01:54]} 22. Rg1 {[%clk 00:00:25]} {[%emt 00:00:06]}
Rb4 {[%clk 00:01:50]} {[%emt 00:00:05]} 23. Bb1 {[%clk 00:00:07]} {[%emt
00:00:25]} Kf7 {[%clk 00:01:18]} {[%emt 00:00:33]} 24. a3 {[%clk 00:00:08]} Rd4
{[%clk 00:01:16]} {[%emt 00:00:06]} 25. Ke2 {[%clk 00:00:04]} {[%emt 00:00:06]}
c4 {[%clk 00:01:12]} {[%emt 00:00:06]} 26. Bxf5 {[%clk 00:00:04]} {[%emt
00:00:05]} gxf5 {[%clk 00:01:14]} 27. Be3 {[%clk 00:00:05]} Rxd5 {[%clk
00:01:12]} {[%emt 00:00:10]} 28. Bxa7 {[%clk 00:00:07]} g6 {[%clk 00:01:02]}
{[%emt 00:00:10]} 29. Rac1 {[%clk 00:00:09]} Bg7 {[%clk 00:01:00]} {[%emt
00:00:09]} 30. Rxc4 {[%clk 00:00:09]} Bxb2 {[%clk 00:01:01]} {[%emt 00:00:04]}
31. a4 {[%clk 00:00:10]} Ra8 {[%clk 00:01:02]} 32. Rc7 {[%clk 00:00:12]} {[%emt
00:00:04]} Re5+ {[%clk 00:01:01]} {[%emt 00:00:06]} 33. Kd3 {[%clk 00:00:13]}
Ra5 {[%clk 00:00:58]} {[%emt 00:00:09]} 34. Rb1 {[%clk 00:00:04]} {[%emt
00:00:07]} R8xa7 {[%clk 00:00:56]} {[%emt 00:00:05]} 35. Rxa7 {[%clk 00:00:06]}
Rxa7 {[%clk 00:00:58]} {[%emt 00:00:06]} 36. Rxb2 Rxa4 {[%clk 00:01:00]} 37.
Rb7 {[%clk 00:00:06]} {[%emt 00:00:05]} Ra3+ {[%clk 00:01:00]} {[%emt
00:00:04]} 38. Kd4 {[%clk 00:00:04]} {[%emt 00:00:05]} Rxh3 {[%clk 00:00:56]}
{[%emt 00:00:04]} 39. f4 {[%clk 00:00:04]} {[%emt 00:00:06]} Rf3 {[%clk
00:00:54]} {[%emt 00:00:04]} 40. Kd5 {[%clk 00:00:07]} Rxf4 {[%clk 00:00:52]}
{[%emt 00:00:05]} 41. Rxe7+ {[%clk 00:00:07]} Kxe7 {[%clk 00:00:53]} {[%emt
00:00:04]} 0-1

[Event "Open Mancomunitat de la Ribera Alta (Sumacàrcer)"]
[Site "Sumacàrcer, Spain"]
[Date "2018.11.18"]
[Round "4.1"]
[White "Toledano Llinares, Juan A."]
[Black "Plaskett, H James"]
[Result "1/2-1/2"]
[TimeControl "5m+3s"]
[WhiteElo "2258"]
[BlackElo "2490"]

1. f4 {[%clk 00:05:04]} {[%emt 00:00:07]} g6 {[%clk 00:05:04]} {[%emt
00:00:04]} 2. Nf3 {[%clk 00:05:04]} Bg7 {[%clk 00:05:06]} 3. e3 {[%clk
00:05:03]} {[%emt 00:00:08]} d6 {[%clk 00:05:08]} 4. Be2 {[%clk 00:04:59]}
{[%emt 00:00:08]} Nf6 {[%clk 00:05:10]} 5. d4 {[%clk 00:04:52]} {[%emt
00:00:07]} c5 {[%clk 00:05:09]} {[%emt 00:00:05]} 6. dxc5 {[%clk 00:04:37]}
{[%emt 00:00:18]} Qa5+ {[%clk 00:05:10]} {[%emt 00:00:04]} 7. Nc3 {[%clk
00:04:34]} {[%emt 00:00:04]} Ne4 {[%clk 00:05:01]} {[%emt 00:00:09]} 8. Bd2
{[%clk 00:04:35]} {[%emt 00:00:11]} Nxc3 {[%clk 00:04:58]} 9. bxc3 {[%clk
00:04:35]} {[%emt 00:00:15]} Qxc5 {[%clk 00:04:58]} {[%emt 00:00:03]} 10. Nd4
{[%clk 00:04:23]} {[%emt 00:00:07]} O-O {[%clk 00:04:59]} 11. O-O {[%clk
00:04:23]} {[%emt 00:00:07]} Nd7 {[%clk 00:05:01]} 12. Bf3 {[%clk 00:04:21]}
Nb6 {[%clk 00:05:03]} 13. Rb1 {[%clk 00:04:04]} {[%emt 00:00:18]} d5 {[%clk
00:04:44]} {[%emt 00:00:39]} 14. Kh1 {[%clk 00:03:49]} {[%emt 00:00:12]} Bd7
{[%clk 00:04:38]} {[%emt 00:00:04]} 15. e4 {[%clk 00:03:48]} {[%emt 00:00:08]}
dxe4 {[%clk 00:04:31]} {[%emt 00:00:04]} 16. Bxe4 {[%clk 00:03:50]} Rab8 {[%clk
00:04:07]} {[%emt 00:00:25]} 17. Qf3 {[%clk 00:03:51]} {[%emt 00:00:07]} Nc4
{[%clk 00:04:04]} {[%emt 00:00:07]} 18. Bc1 {[%clk 00:03:05]} {[%emt 00:00:42]}
b6 {[%clk 00:04:01]} {[%emt 00:00:12]} 19. Rd1 {[%clk 00:02:54]} {[%emt
00:00:08]} Rbd8 {[%clk 00:03:55]} {[%emt 00:00:37]} 20. Be3 {[%clk 00:02:35]}
Nxe3 {[%clk 00:03:48]} {[%emt 00:00:06]} 21. Qxe3 {[%clk 00:02:37]} {[%emt
00:00:04]} Bg4 {[%clk 00:03:49]} 22. Rd2 {[%clk 00:02:06]} {[%emt 00:00:33]}
Rc8 {[%clk 00:03:47]} {[%emt 00:00:06]} 23. h3 {[%clk 00:02:07]} Bd7 {[%clk
00:03:47]} {[%emt 00:00:03]} 24. Rd3 {[%clk 00:01:55]} {[%emt 00:00:20]} Rc7
{[%clk 00:03:33]} {[%emt 00:00:11]} 25. Rbd1 {[%clk 00:01:56]} {[%emt
00:00:11]} Ba4 {[%clk 00:03:28]} {[%emt 00:00:03]} 26. f5 {[%clk 00:01:40]}
{[%emt 00:00:16]} Rfc8 {[%clk 00:03:24]} {[%emt 00:00:09]} 27. fxg6 {[%clk
00:01:39]} {[%emt 00:00:05]} hxg6 {[%clk 00:03:26]} 28. Qf3 {[%clk 00:01:34]}
{[%emt 00:00:11]} Be8 {[%clk 00:03:27]} 29. Ne2 {[%clk 00:00:48]} {[%emt
00:00:47]} Qe5 {[%clk 00:03:18]} {[%emt 00:00:26]} 30. Rd8 {[%clk 00:00:49]}
Bf6 {[%clk 00:03:17]} 31. Bb7 {[%clk 00:00:48]} {[%emt 00:00:09]} Kg7 {[%clk
00:02:25]} {[%emt 00:00:40]} 32. Bxc8 {[%clk 00:00:49]} {[%emt 00:00:34]} Bc6
{[%clk 00:02:27]} 33. Qf2 {[%clk 00:00:45]} e6 {[%clk 00:02:29]} {[%emt
00:00:03]} 34. Ba6 {[%clk 00:00:32]} Bxd8 {[%clk 00:02:18]} {[%emt 00:00:06]}
35. Rxd8 {[%clk 00:00:34]} {[%emt 00:00:17]} Bd5 {[%clk 00:02:14]} 36. Qd4
{[%clk 00:00:36]} Qxd4 {[%clk 00:02:14]} 37. Nxd4 {[%clk 00:00:37]} {[%emt
00:00:03]} Rxc3 {[%clk 00:02:16]} 38. Bd3 {[%clk 00:00:36]} Bxa2 {[%clk
00:02:09]} {[%emt 00:00:06]} 39. Rd7 {[%clk 00:00:34]} {[%emt 00:00:34]} a5
{[%clk 00:02:07]} {[%emt 00:00:03]} 40. Rb7 {[%clk 00:00:34]} Bd5 {[%clk
00:01:50]} {[%emt 00:00:06]} 41. Rxb6 {[%clk 00:00:35]} a4 {[%clk 00:01:51]} 42.
Ra6 {[%clk 00:00:37]} {[%emt 00:00:04]} e5 {[%clk 00:01:48]} {[%emt 00:00:04]}
43. Nb5 {[%clk 00:00:36]} Rc5 {[%clk 00:01:49]} {[%emt 00:00:03]} 44. Rxa4
{[%clk 00:00:35]} {[%emt 00:00:03]} e4 {[%clk 00:01:49]} {[%emt 00:00:06]} 45.
Bf1 {[%clk 00:00:27]} {[%emt 00:00:06]} Rxc2 {[%clk 00:01:50]} {[%emt
00:00:37]} 46. Kh2 {[%clk 00:00:22]} e3 {[%clk 00:01:48]} {[%emt 00:00:03]} 47.
Nd4 {[%clk 00:00:22]} Rf2 {[%clk 00:01:47]} 48. Kg1 {[%clk 00:00:21]} Kf6
{[%clk 00:01:16]} {[%emt 00:00:20]} 49. Ra3 {[%clk 00:00:22]} {[%emt 00:00:33]}
Rd2 {[%clk 00:01:14]} 50. Ne2 {[%clk 00:00:20]} Kg7 {[%clk 00:01:04]} {[%emt
00:00:09]} 51. Rxe3 {[%clk 00:00:21]} f5 {[%clk 00:01:07]} 52. Nc3 {[%clk
00:00:20]} Bf7 {[%clk 00:01:08]} 53. Be2 {[%clk 00:00:21]} {[%emt 00:00:04]}
Kf6 {[%clk 00:01:10]} 54. Bf3 {[%clk 00:00:22]} g5 {[%clk 00:01:09]} 55. g4
{[%clk 00:00:16]} {[%emt 00:00:07]} Be6 {[%clk 00:00:50]} {[%emt 00:00:20]} 56.
gxf5 {[%clk 00:00:17]} {[%emt 00:00:08]} Bxf5 {[%clk 00:00:51]} 57. Ne4+ {[%clk
00:00:19]} Bxe4 {[%clk 00:00:53]} 58. Bxe4 {[%clk 00:00:21]} Rb2 {[%clk
00:00:54]} {[%emt 00:00:12]} 59. Bf3 {[%clk 00:00:22]} Rd2 {[%clk 00:00:56]} 60.
Bg4 {[%clk 00:00:24]} Rb2 {[%clk 00:00:58]} 61. Re2 {[%clk 00:00:25]} {[%emt
00:00:05]} Rxe2 {[%clk 00:00:59]} 62. Bxe2 {[%clk 00:00:27]} Kg7 63. Kf2 Kh8
{[%clk 00:01:02]} 64. Kg3 {[%clk 00:00:32]} {[%emt 00:00:03]} Kg7 {[%clk
00:01:04]} 65. Kg4 {[%clk 00:00:35]} Kh8 {[%clk 00:01:07]} 66. Kh5 {[%clk
00:00:37]} Kg7 {[%clk 00:01:09]} {[%emt 00:00:03]} 67. Bc4 {[%clk 00:00:35]}
{[%emt 00:00:03]} Kh8 {[%clk 00:01:10]} {[%emt 00:00:04]} 68. Kg4 {[%clk
00:00:29]} {[%emt 00:00:10]} Kg7 {[%clk 00:01:11]} {[%emt 00:00:03]} 69. Kf5
{[%clk 00:00:31]} Kh8 {[%clk 00:01:11]} 70. Kf6 {[%clk 00:00:34]} Kh7 {[%clk
00:01:13]} {[%emt 00:00:04]} 71. Be6 {[%clk 00:00:34]} Kh8 {[%clk 00:01:12]}
{[%emt 00:00:03]} 72. Kg6 {[%clk 00:00:34]} {[%emt 00:00:06]} g4 {[%clk
00:01:13]} 73. h4 {[%clk 00:00:34]} {[%emt 00:00:06]} g3 {[%clk 00:01:14]} 74.
Bd5 {[%clk 00:00:36]} g2 {[%emt 00:00:12]} 1/2-1/2